fUST/lending_fUST_20250603
["ID","MTS","AMOUNT","RATE_DAILY","PERIOD"]
[363810194,1748881838223,-1791.0,0.00021,5]
[363810196,1748881838234,-1495.09707766,0.00021003,4]
[363810198,1748881838244,-500.0,0.00021045,2]
[363810200,1748881838255,-151.0,0.00021074,2]
[363810202,1748881838266,-207.4,0.00021074,2]
[363810204,1748881838276,-151.0,0.00021074,2]
[363810205,1748881838287,-151.0,0.00021074,2]
[363810207,1748881838298,-151.0,0.00021074,2]
[363810209,1748881838309,-151.0,0.00021074,2]
[363810211,1748881838319,-500.0,0.00021074,2]
[363810213,1748881838329,-500.0,0.00021074,2]
[363810215,1748881838340,-151.0,0.00021074,2]
[363810217,1748881838350,-500.0,0.00021074,2]
[363810218,1748881838360,-500.0,0.00021074,2]
[363810220,1748881838372,-151.0,0.00021074,2]
[363810222,1748881838382,-500.0,0.00021074,2]
[363810224,1748881838392,-500.0,0.00021074,2]
[363810226,1748881838403,-226.76390347,0.00021074,2]
[363810228,1748881838414,-500.0,0.00021074,2]
[363810230,1748881838424,-500.0,0.00021074,2]
[363810232,1748881838436,-500.0,0.00021074,2]
[363810233,1748881838447,-500.0,0.00021074,2]
[363810235,1748881838458,-500.0,0.00021074,2]
[363810237,1748881838468,-500.0,0.00021074,2]
[363810239,1748881838480,-500.0,0.00021074,2]
[363810241,1748881838490,-500.0,0.00021074,2]
[363810243,1748881838501,-500.0,0.00021074,2]
[363810245,1748881838511,-500.0,0.00021074,2]
[363810247,1748881838522,-500.0,0.00021074,2]
[363810249,1748881838532,-500.0,0.00021074,2]
[363810251,1748881838543,-500.0,0.00021074,2]
[363810253,1748881838554,-5000.0,0.00021074,2]
[363810255,1748881838565,-500.0,0.00021074,2]
[363810257,1748881838576,-500.56463659,0.00021074,2]
[363810259,1748881838587,-2424.12057977,0.00021074,2]
[363810261,1748881838597,-202.5886477,0.00021074,2]
[363810263,1748881838607,-430.0,0.00021078,2]
[363810265,1748881838618,-460.65,0.00021078,2]
[363810266,1748881838629,-792.97,0.00021078,2]
[363810268,1748881838639,-647.59,0.00021078,2]
[363810270,1748881838650,-430.0,0.00021079,2]
[363810272,1748881838659,-864.21,0.00021079,2]
[363810274,1748881838668,-780.66,0.00021079,2]
[363810276,1748881838678,-460.39,0.00021081,2]
[363810278,1748881838688,-1442.15,0.00021096,2]
[363810280,1748881838697,-1442.15,0.00021196,2]
[363810282,1748881838706,-29505.28614552,0.00021207,7]
[363810283,1748881838716,-1495.09707766,0.0002121,4]
[363810285,1748881838725,-159.32514341,0.00021291,2]
[363810287,1748881838734,-1442.15,0.00021296,2]
[363810289,1748881838745,-430.0,0.00021352,2]
[363810291,1748881838755,-460.65,0.00021352,2]
[363810307,1748881838766,-792.97,0.00021352,2]
[363810309,1748881838942,-647.59,0.00021352,2]
[363810311,1748881838954,-430.0,0.00021353,2]
[363810313,1748881838964,-864.21,0.00021353,2]
[363810315,1748881838974,-780.66,0.00021353,2]
[363810317,1748881838983,-1442.15,0.00021396,2]
[363810319,1748881838992,-1495.09707766,0.00021417,5]
[363810320,1748881839001,-1442.15,0.00021496,2]
[363810322,1748881839011,-1000.0,0.00021593,2]
[363810324,1748881839020,-1442.15,0.00021596,2]
[363810326,1748881839030,-152.51297585,0.00021622,2]
[363810328,1748881839039,-5000.0,0.00021622,2]
[363810330,1748881839048,-1495.09707766,0.00021624,5]
[363810331,1748881839058,-430.0,0.00021626,2]
[363810333,1748881839067,-460.65,0.00021626,2]
[363810335,1748881839077,-792.97,0.00021626,2]
[363810337,1748881839087,-647.59,0.00021626,2]
[363810339,1748881839099,-430.0,0.00021627,2]
[363810341,1748881839109,-864.21,0.00021627,2]
[363810343,1748881839119,-780.66,0.00021627,2]
[363810345,1748881839128,-1442.15,0.00021696,2]
[363810347,1748881839138,-699.9,0.000217,2]
[363810348,1748881839147,-8785.80297612,0.000217,2]
[363810350,1748881839157,-1442.15,0.00021796,2]
[363810352,1748881839167,-1495.09707766,0.00021831,6]
[363810354,1748881839176,-577.10417574,0.00021895,2]
[363810356,1748881839188,-1442.15,0.00021896,2]
[363810358,1748881839198,-1505.69,0.000219,2]
[363810360,1748881839207,-430.0,0.000219,2]
[363810362,1748881839218,-460.65,0.000219,2]
[363810363,1748881839227,-792.97,0.000219,2]
[363810365,1748881839237,-647.59,0.000219,2]
[363810367,1748881839247,-430.0,0.00021901,2]
[363810369,1748881839256,-864.21,0.00021901,2]
[363810371,1748881839265,-780.66,0.00021901,2]
[363810373,1748881839275,-500.0,0.00021917,2]
[363810374,1748881839284,-500.0,0.00021917,2]
[363810376,1748881839293,-500.0,0.00021917,2]
[363810378,1748881839303,-500.0,0.00021917,2]
[363810380,1748881839313,-500.0,0.00021917,2]
[363810382,1748881839322,-500.0,0.00021917,2]
[363810384,1748881839332,-500.0,0.00021917,2]
[363810386,1748881839341,-500.0,0.00021917,2]
[363810388,1748881839350,-363.35405344,0.00021917,2]
[363810389,1748881839361,-550.07,0.00021917,2]
[363810391,1748881839370,-550.07,0.00021917,2]
[363810393,1748881839380,-550.07,0.00021917,2]
[363810395,1748881839390,-550.07,0.00021917,2]
[363810397,1748881839400,-550.07,0.00021917,2]
[363810399,1748881839409,-550.07,0.00021917,2]
[363810401,1748881839418,-550.07,0.00021917,2]
[363810402,1748881839428,-550.07,0.00021917,2]
[363810404,1748881839438,-550.07,0.00021917,2]
[363810406,1748881839448,-550.07,0.00021917,2]
[363810408,1748881839457,-550.07,0.00021917,2]
[363810410,1748881839467,-550.07,0.00021917,2]
[363810412,1748881839476,-550.07,0.00021917,2]
[363810414,1748881839486,-550.07,0.00021917,2]
[363810416,1748881839495,-550.07,0.00021917,2]
[363810417,1748881839504,-550.07,0.00021917,2]
[363810419,1748881839513,-550.07,0.00021917,2]
[363810421,1748881839522,-550.07,0.00021917,2]
[363810423,1748881839531,-550.07,0.00021917,2]
[363810426,1748881839551,-500.0,0.00021917,2]
[363810428,1748881839562,-500.0,0.00021917,2]
[363810430,1748881839572,-500.0,0.00021917,2]
[363810432,1748881839582,-500.0,0.00021917,2]
[363810433,1748881839592,-500.0,0.00021917,2]
[363810435,1748881839601,-500.0,0.00021917,2]
[363810437,1748881839612,-500.0,0.00021917,2]
[363810439,1748881839622,-500.0,0.00021917,2]
[363810441,1748881839632,-500.0,0.00021917,2]
[363810443,1748881839642,-500.0,0.00021917,2]
[363810445,1748881839652,-183.04845287,0.00021917,2]
[363810447,1748881839661,-323.0767398,0.00021918,7]
[363810449,1748881839671,-150.0,0.00021918,2]
[363810451,1748881839683,-577.10417574,0.0002192,2]
[363810453,1748881839693,-600.0,0.00021973,2]
[363810454,1748881839703,-500.0,0.00021973,2]
[363810456,1748881839712,-508.513244,0.00021973,2]
[363810458,1748881839722,-500.0,0.00021973,2]
[363810460,1748881839732,-500.0,0.00021973,2]
[363810462,1748881839742,-500.0,0.00021973,2]
[363810464,1748881839751,-500.0,0.00021973,2]
[363810466,1748881839762,-500.0,0.00021973,2]
[363810468,1748881839775,-500.0,0.00021973,2]
[363810470,1748881839784,-500.0,0.00021973,2]
[363810472,1748881839794,-500.0,0.00021973,2]
[363810474,1748881839804,-561.77688493,0.00021973,2]
[363810475,1748881839814,-6804.02571148,0.00021994,2]
[363810477,1748881839824,-1442.15,0.00021996,3]
[363810479,1748881839834,-7231.02799,0.00021999,2]
[363810481,1748881839843,-500.0,0.00021999,2]
[363810483,1748881839853,-500.0,0.00021999,2]
[363810485,1748881839863,-500.0,0.00021999,2]
[363810487,1748881839872,-199.12977696,0.00021999,2]
[363810489,1748881839881,-500.0,0.00021999,2]
[363810490,1748881839890,-500.0,0.00021999,2]
[363810492,1748881839900,-500.0,0.00021999,2]
[363810494,1748881839909,-500.0,0.00021999,2]
[363810496,1748881839919,-267.04244768,0.00021999,2]
[363810498,1748881839928,-500.0,0.00021999,2]
[363810500,1748881839939,-3780.4760398,0.00021999,3]
[363810502,1748881839949,-137910.23873153,0.00022,2]
[363810504,1748881839959,-2208.93,0.00022,2]
[363810506,1748881839969,-187.0,0.00022,2]
[363810507,1748881839979,-171.0,0.00022,2]
[363810509,1748881839989,-350.36616789,0.00022,2]
[363810511,1748881839998,-114672.72584399,0.00022,2]
[363810520,1748881840082,-169.29125967,0.00018227,2]
[363810521,1748881840093,-3000.0,0.00019026,2]
[363810523,1748881840103,-82189.09264468,0.00022,2]
[363810526,1748881840115,-459.57544807,0.00022,2]
[363810532,1748881840179,-10563.005991,0.00022,2]
[363810535,1748881840195,-3134.719996,0.00022,2]
[363810537,1748881840207,-22046.0,0.00022,2]
[363810538,1748881840219,-330.154,0.00022,2]
[363810539,1748881840231,-602.88017538,0.00022,2]
[363810685,1748881842755,-500.0,0.00016999,2]
[363810688,1748881842765,-617.50581725,0.00016999,2]
[363810690,1748881842778,-995.24,0.00018729,2]
[363810692,1748881842787,-3000.0,0.00020122,2]
[363810694,1748881842797,-1990.47,0.00020432,2]
[363810696,1748881842806,-3000.0,0.00021218,2]
[363810698,1748881842816,-4801.35453578,0.00022,2]
[363810700,1748881842827,-17115.65082793,0.00022,2]
[363810702,1748881842839,-5280.14079316,0.00022,2]
[363810705,1748881842852,-4344.77911314,0.00022,2]
[363810932,1748881845970,-388.76907568,0.00018787,2]
[363810934,1748881845980,-90.44692536,0.00021019,2]
[363810936,1748881845991,-78.84433431,0.00021019,2]
[363810938,1748881846000,-2193.67794731,0.00022,2]
[363810940,1748881846012,-90.74029628,0.00022,2]
[363810942,1748881846022,-6541.33153089,0.00022,7]
[363810960,1748881886789,361.67278,0.00013699,2]
[363811138,1748882890322,-203.01044608,0.000156,2]
[363811139,1748882892195,-19.91418592,0.000156,2]
[363811149,1748882932294,370.974375,0.00013699,2]
[363811156,1748882984019,5000.0,0.0001555,2]
[363811157,1748883000295,5000.0,0.0001555,2]
[363811160,1748883016070,352.55,0.0001555,2]
[363811231,1748883038012,-225.19613167,0.00015754,2]
[363811233,1748883038023,-1200.0,0.0001577,2]
[363811235,1748883038033,-10000.0,0.00015771,2]
[363811237,1748883038043,-300.0,0.00015831,2]
[363811239,1748883038053,-300.0,0.00015831,2]
[363811241,1748883038063,-300.0,0.00015831,2]
[363811243,1748883038073,-300.0,0.00015831,2]
[363811245,1748883038083,-24900.0,0.0001595,2]
[363811247,1748883038093,-168.19204084,0.00016055,2]
[363811249,1748883038103,-173.785802,0.00016155,2]
[363811251,1748883038115,-430.0,0.00016438,2]
[363811253,1748883038124,-430.0,0.00016438,2]
[363811255,1748883038135,-430.0,0.00016438,2]
[363811257,1748883038145,-430.0,0.00016438,2]
[363811258,1748883038155,-259.17938378,0.00016867,2]
[363811260,1748883038164,-300.0,0.00016965,2]
[363811261,1748883038174,-430.0,0.00016966,2]
[363811263,1748883038184,-430.0,0.00016966,2]
[363811265,1748883038194,-430.0,0.00016966,2]
[363811267,1748883038204,-430.0,0.00016966,2]
[363811268,1748883038218,-430.0,0.00016966,2]
[363811269,1748883038228,-430.0,0.00016966,2]
[363811270,1748883038237,-459.8,0.00016966,2]
[363811271,1748883038248,-430.0,0.00016966,2]
[363811272,1748883038258,-430.0,0.00016966,2]
[363811273,1748883038268,-567.45,0.00016966,2]
[363811274,1748883038278,-430.0,0.00016966,2]
[363811275,1748883038288,-457.39357246,0.00016966,2]
[363811276,1748883038300,-609.68,0.00016966,2]
[363811277,1748883038311,-430.0,0.00016966,2]
[363811278,1748883038321,-630.76,0.00016966,2]
[363811279,1748883038332,-886.96,0.00016966,2]
[363811280,1748883038342,-430.0,0.00016966,2]
[363811281,1748883038352,-430.0,0.00016966,2]
[363811282,1748883038363,-500.0,0.00016966,2]
[363811283,1748883038373,-500.0,0.00016966,2]
[363811284,1748883038384,-500.0,0.00016966,2]
[363811285,1748883038393,-500.0,0.00016966,2]
[363811286,1748883038403,-500.0,0.00016966,2]
[363811287,1748883038414,-405.10432001,0.00016966,2]
[363811288,1748883038424,-500.0,0.00016966,2]
[363811289,1748883038433,-500.0,0.00016966,2]
[363811290,1748883038443,-500.0,0.00016966,2]
[363811291,1748883038453,-500.0,0.00016966,2]
[363811292,1748883038462,-172.23729319,0.00016966,2]
[363811293,1748883038472,-152.33054976,0.00016966,2]
[363811294,1748883038482,-500.0,0.00016966,2]
[363811295,1748883038492,-500.0,0.00016966,2]
[363811296,1748883038502,-500.0,0.00016966,2]
[363811297,1748883038512,-500.0,0.00016966,2]
[363811298,1748883038521,-500.0,0.00016966,2]
[363811299,1748883038531,-430.0,0.00016966,2]
[363811300,1748883038542,-430.0,0.00016966,2]
[363811301,1748883038552,-430.0,0.00016967,2]
[363811302,1748883038562,-430.0,0.00016967,2]
[363811303,1748883038572,-430.0,0.00016967,2]
[363811304,1748883038582,-430.0,0.00016967,2]
[363811305,1748883038592,-430.0,0.00016967,2]
[363811306,1748883038601,-575.26851512,0.00016967,2]
[363811307,1748883038611,-430.0,0.00016967,2]
[363811308,1748883038625,-430.0,0.00016967,2]
[363811309,1748883038635,-430.0,0.00016967,2]
[363811310,1748883038645,-430.0,0.00016967,2]
[363811311,1748883038656,-346.36,0.00016967,2]
[363811312,1748883038667,-430.0,0.00016967,2]
[363811313,1748883038676,-430.0,0.00016967,2]
[363811314,1748883038686,-430.0,0.00016967,2]
[363811315,1748883038696,-430.0,0.00016967,2]
[363811316,1748883038706,-430.0,0.00016967,2]
[363811317,1748883038716,-577.17382193,0.00016967,2]
[363811318,1748883038727,-430.0,0.00016967,2]
[363811319,1748883038738,-439.37059374,0.00016967,2]
[363811320,1748883038747,-430.0,0.00016967,2]
[363811321,1748883038757,-430.0,0.00016967,2]
[363811322,1748883038767,-430.0,0.00016967,2]
[363811323,1748883038776,-430.0,0.00016967,2]
[363811324,1748883038786,-430.0,0.00016967,2]
[363811325,1748883038797,-430.0,0.00016967,2]
[363811326,1748883038807,-430.0,0.00016967,2]
[363811327,1748883038818,-430.0,0.00016967,2]
[363811328,1748883038828,-430.0,0.00016967,2]
[363811329,1748883038838,-430.0,0.00016967,2]
[363811330,1748883038848,-430.0,0.00016967,2]
[363811331,1748883038859,-430.0,0.00016967,2]
[363811332,1748883038869,-430.0,0.00016967,2]
[363811333,1748883038878,-430.0,0.00016967,2]
[363811334,1748883038888,-430.0,0.00016967,2]
[363811335,1748883038898,-829.9,0.00016967,2]
[363811336,1748883038911,-430.0,0.00016967,2]
[363811337,1748883038923,-430.0,0.00016967,2]
[363811338,1748883038933,-430.0,0.00016967,2]
[363811339,1748883038943,-430.0,0.00016967,2]
[363811340,1748883038952,-430.0,0.00016967,2]
[363811341,1748883038962,-408.48,0.00016967,2]
[363811342,1748883038972,-430.0,0.00016967,2]
[363811343,1748883038982,-203.14117043,0.00016967,2]
[363811344,1748883038992,-430.0,0.00016967,2]
[363811345,1748883039003,-430.0,0.00016967,2]
[363811346,1748883039012,-430.0,0.00016967,2]
[363811347,1748883039023,-430.0,0.00016967,2]
[363811348,1748883039033,-445.3,0.00016967,2]
[363811349,1748883039043,-430.0,0.00016967,2]
[363811350,1748883039053,-430.0,0.00016967,2]
[363811351,1748883039062,-430.0,0.00016967,2]
[363811352,1748883039073,-1184.87,0.00016967,2]
[363811353,1748883039084,-430.0,0.00016967,2]
[363811354,1748883039095,-430.0,0.00016967,2]
[363811355,1748883039106,-430.0,0.00016967,2]
[363811356,1748883039116,-430.0,0.00016967,2]
[363811357,1748883039126,-430.0,0.00016967,2]
[363811358,1748883039134,-430.0,0.00016967,2]
[363811359,1748883039142,-430.0,0.00016968,2]
[363811360,1748883039150,-240.50981318,0.00016968,2]
[363811361,1748883039162,-189.49018682,0.00016968,2]
[363811362,1748883039171,-199.99999999,0.00016968,2]
[363811363,1748883039179,-430.0,0.00016968,2]
[363811364,1748883039187,-430.0,0.00016968,2]
[363811365,1748883039195,-430.0,0.00016968,2]
[363811366,1748883039204,-430.0,0.00016968,2]
[363811367,1748883039216,-563.39586854,0.00016968,2]
[363811368,1748883039224,-430.0,0.00016968,2]
[363811369,1748883039234,-430.0,0.00016968,2]
[363811370,1748883039242,-430.0,0.00016968,2]
[363811371,1748883039250,-430.0,0.00016969,2]
[363811372,1748883039260,-160.0,0.00016999,2]
[363811373,1748883039268,-510.39,0.0001724,2]
[363811374,1748883039276,-448.66104185,0.0001724,2]
[363811375,1748883039284,-450.31551229,0.0001724,2]
[363811376,1748883039292,-430.0,0.0001724,2]
[363811377,1748883039307,-430.0,0.0001724,2]
[363811378,1748883039315,-490.1687147,0.0001724,2]
[363811379,1748883039322,-459.8,0.0001724,2]
[363811380,1748883039331,-430.0,0.0001724,2]
[363811381,1748883039340,-567.45,0.0001724,2]
[363811382,1748883039349,-459.40865632,0.0001724,2]
[363811383,1748883039358,-609.68,0.0001724,2]
[363811384,1748883039367,-447.92074179,0.0001724,2]
[363811385,1748883039375,-630.76,0.0001724,2]
[363811386,1748883039384,-886.96,0.0001724,2]
[363811387,1748883039391,-430.0,0.0001724,2]
[363811388,1748883039398,-349.77874757,0.0001724,2]
[363811389,1748883039406,-430.0,0.0001724,2]
[363811390,1748883039414,-430.0,0.0001724,2]
[363811392,1748883039421,-430.0,0.00017241,2]
[363811393,1748883039428,-430.0,0.00017241,2]
[363811394,1748883039436,-430.0,0.00017241,2]
[363811395,1748883039445,-430.0,0.00017241,2]
[363811396,1748883039453,-430.0,0.00017241,2]
[363811397,1748883039461,-423.60155761,0.00017241,2]
[363811398,1748883039468,-527.681607,0.00017241,2]
[363811399,1748883039476,-430.0,0.00017241,2]
[363811400,1748883039484,-448.92870979,0.00017241,2]
[363811401,1748883039493,-430.0,0.00017241,2]
[363811402,1748883039501,-430.0,0.00017241,2]
[363811403,1748883039508,-183.35401133,0.00017241,2]
[363811404,1748883039517,-430.0,0.00017241,2]
[363811405,1748883039526,-430.0,0.00017241,2]
[363811406,1748883039536,-430.0,0.00017241,2]
[363811407,1748883039546,-430.0,0.00017241,2]
[363811413,1748883039718,-430.0,0.00017241,2]
[363811415,1748883039728,-430.0,0.00017241,2]
[363811417,1748883039738,-430.0,0.00017241,2]
[363811419,1748883039747,-430.0,0.00017241,2]
[363811421,1748883039756,-430.0,0.00017241,2]
[363811423,1748883039766,-430.0,0.00017241,2]
[363811425,1748883039775,-430.0,0.00017241,2]
[363811427,1748883039784,-430.0,0.00017241,2]
[363811429,1748883039794,-430.0,0.00017241,2]
[363811431,1748883039803,-829.9,0.00017241,2]
[363811433,1748883039812,-430.0,0.00017241,2]
[363811434,1748883039821,-430.0,0.00017241,2]
[363811436,1748883039831,-430.0,0.00017241,2]
[363811438,1748883039840,-159.86,0.00017241,2]
[363811440,1748883039850,-430.0,0.00017241,2]
[363811442,1748883039860,-430.0,0.00017241,2]
[363811444,1748883039870,-430.0,0.00017241,2]
[363811446,1748883039880,-430.0,0.00017241,2]
[363811448,1748883039889,-430.0,0.00017241,2]
[363811449,1748883039899,-430.0,0.00017241,2]
[363811450,1748883039910,-445.3,0.00017241,2]
[363811452,1748883039920,-430.0,0.00017241,2]
[363811454,1748883039929,-430.0,0.00017241,2]
[363811456,1748883039939,-430.0,0.00017241,2]
[363811457,1748883039948,-1184.87,0.00017241,2]
[363811459,1748883039958,-430.0,0.00017241,2]
[363811461,1748883039967,-444.95503632,0.00017241,2]
[363811463,1748883039977,-430.0,0.00017241,2]
[363811465,1748883039987,-430.0,0.00017241,2]
[363811467,1748883039996,-430.0,0.00017241,2]
[363811469,1748883040005,-472.48927537,0.00017242,2]
[363811471,1748883040014,-370.9535,0.00017242,2]
[363811473,1748883040024,-151.37663522,0.00017242,2]
[363811475,1748883040034,-448.97832312,0.00017242,2]
[363811477,1748883040044,-441.95115847,0.00017242,2]
[363811479,1748883040053,-402.1124176,0.00017243,2]
[363811481,1748883040063,-420.0,0.00017312,2]
[363811483,1748883040073,-420.0,0.00017312,2]
[363811485,1748883040082,-420.0,0.00017312,2]
[363811487,1748883040091,-1680.0,0.00017333,2]
[363811488,1748883040101,-430.0,0.00017514,2]
[363811491,1748883040111,-430.0,0.00017514,2]
[363811493,1748883040122,-459.8,0.00017514,2]
[363811495,1748883040133,-376.99,0.00017514,2]
[363811497,1748883040142,-567.45,0.00017514,2]
[363811498,1748883040152,-609.68,0.00017514,2]
[363811500,1748883040162,-630.76,0.00017514,2]
[363811502,1748883040173,-886.96,0.00017514,2]
[363811505,1748883040183,-430.0,0.00017514,2]
[363811507,1748883040192,-430.0,0.00017514,2]
[363811509,1748883040202,-430.0,0.00017514,2]
[363811511,1748883040215,-430.0,0.00017515,2]
[363811513,1748883040225,-430.0,0.00017515,2]
[363811515,1748883040234,-430.0,0.00017515,2]
[363811517,1748883040244,-430.0,0.00017515,2]
[363811519,1748883040255,-430.0,0.00017515,2]
[363811521,1748883040265,-430.0,0.00017515,2]
[363811523,1748883040274,-430.0,0.00017515,2]
[363811525,1748883040284,-430.0,0.00017515,2]
[363811527,1748883040295,-430.0,0.00017515,2]
[363811529,1748883040305,-455.65984197,0.00017515,2]
[363811531,1748883040314,-430.0,0.00017515,2]
[363811533,1748883040324,-430.0,0.00017515,2]
[363811535,1748883040333,-430.0,0.00017515,2]
[363811537,1748883040343,-430.0,0.00017515,2]
[363811539,1748883040354,-430.0,0.00017515,2]
[363811541,1748883040364,-430.0,0.00017515,2]
[363811543,1748883040373,-430.0,0.00017515,2]
[363811545,1748883040383,-430.0,0.00017515,2]
[363811547,1748883040392,-430.0,0.00017515,2]
[363811549,1748883040402,-430.0,0.00017515,2]
[363811551,1748883040411,-430.0,0.00017515,2]
[363811553,1748883040423,-829.9,0.00017515,2]
[363811555,1748883040433,-430.0,0.00017515,2]
[363811557,1748883040443,-430.0,0.00017515,2]
[363811559,1748883040453,-430.0,0.00017515,2]
[363811561,1748883040462,-430.0,0.00017515,2]
[363811563,1748883040472,-533.09,0.00017515,2]
[363811565,1748883040481,-430.0,0.00017515,2]
[363811567,1748883040490,-430.0,0.00017515,2]
[363811569,1748883040500,-430.0,0.00017515,2]
[363811571,1748883040510,-430.0,0.00017515,2]
[363811573,1748883040520,-445.3,0.00017515,2]
[363811575,1748883040529,-430.0,0.00017515,2]
[363811577,1748883040538,-430.0,0.00017515,2]
[363811579,1748883040548,-1184.87,0.00017515,2]
[363811581,1748883040558,-430.0,0.00017515,2]
[363811583,1748883040568,-430.0,0.00017515,2]
[363811585,1748883040578,-430.0,0.00017515,2]
[363811586,1748883040588,-430.0,0.00017515,2]
[363811588,1748883040597,-259.17938378,0.00017552,2]
[363811590,1748883040607,-2100.0,0.00017574,2]
[363811592,1748883040617,-430.0,0.00017788,2]
[363811594,1748883040627,-430.0,0.00017788,2]
[363811596,1748883040637,-459.8,0.00017788,2]
[363811598,1748883040647,-567.45,0.00017788,2]
[363811600,1748883040656,-609.68,0.00017788,2]
[363811602,1748883040666,-630.76,0.00017788,2]
[363811604,1748883040675,-886.96,0.00017788,2]
[363811606,1748883040684,-430.0,0.00017788,2]
[363811608,1748883040693,-430.0,0.00017788,2]
[363811609,1748883040703,-430.0,0.00017788,2]
[363811611,1748883040712,-474.464875,0.00017789,2]
[363811613,1748883040722,-448.6292932,0.00017789,2]
[363811615,1748883040732,-452.24892255,0.00017789,2]
[363811617,1748883040741,-284.1875949,0.00017789,2]
[363811619,1748883040751,-430.0,0.00017789,2]
[363811621,1748883040761,-430.0,0.00017789,2]
[363811623,1748883040770,-430.0,0.00017789,2]
[363811625,1748883040780,-430.0,0.00017789,2]
[363811627,1748883040790,-430.0,0.00017789,2]
[363811629,1748883040799,-430.0,0.00017789,2]
[363811631,1748883040809,-430.0,0.00017789,2]
[363811632,1748883040819,-441.52955834,0.00017789,2]
[363811634,1748883040828,-430.0,0.00017789,2]
[363811636,1748883040838,-430.0,0.00017789,2]
[363811638,1748883040847,-430.0,0.00017789,2]
[363811640,1748883040858,-430.0,0.00017789,2]
[363811642,1748883040868,-430.0,0.00017789,2]
[363811644,1748883040878,-430.0,0.00017789,2]
[363811646,1748883040888,-430.0,0.00017789,2]
[363811648,1748883040897,-829.9,0.00017789,2]
[363811650,1748883040907,-430.0,0.00017789,2]
[363811652,1748883040918,-430.0,0.00017789,2]
[363811654,1748883040928,-389.7085996,0.00017789,2]
[363811656,1748883040937,-430.0,0.00017789,2]
[363811658,1748883040947,-430.0,0.00017789,2]
[363811660,1748883040956,-430.0,0.00017789,2]
[363811662,1748883040966,-445.3,0.00017789,2]
[363811664,1748883040975,-430.0,0.00017789,2]
[363811666,1748883040985,-430.0,0.00017789,2]
[363811668,1748883040995,-1184.87,0.00017789,2]
[363811670,1748883041004,-430.0,0.00017789,2]
[363811672,1748883041013,-403.87,0.00017789,2]
[363811674,1748883041022,-430.0,0.00017789,2]
[363811676,1748883041031,-430.0,0.00017789,2]
[363811678,1748883041041,-500.86651381,0.00017808,2]
[363811680,1748883041051,-500.0,0.00017808,2]
[363811682,1748883041060,-500.0,0.00017808,2]
[363811684,1748883041069,-500.0,0.00017808,2]
[363811685,1748883041079,-500.0,0.00017842,2]
[363811687,1748883041088,-500.0,0.00017842,2]
[363811689,1748883041098,-430.0,0.00018062,2]
[363811691,1748883041107,-430.0,0.00018062,2]
[363811693,1748883041117,-459.8,0.00018062,2]
[363811695,1748883041128,-567.45,0.00018062,2]
[363811697,1748883041137,-609.68,0.00018062,2]
[363811700,1748883041148,-630.76,0.00018062,2]